[Event "Late-Titled-Tuesday-Blitz-April-30-2024"]
[Site "Chess.com"]
[Date "2024.04.30"]
[Round "1"]
[White "WoodlandMagic"]
[Black "Real_taiatai"]
[Result "1-0"]
[WhiteElo "2877"]
[BlackElo "2479"]
[TimeControl "180+1"]
[EndTime "14:06:28 PDT"]
[Termination "WoodlandMagic won by resignation"]

1. Nf3 {[%clk 0:02:59.3]} 1... Nf6 {[%clk 0:02:53.2]} 2. d4 {[%clk 0:02:57.7]}
2... d5 {[%clk 0:02:52.8]} 3. Bf4 {[%clk 0:02:57.4]} 3... c5 {[%clk 0:02:52.6]}
4. e3 {[%clk 0:02:57.6]} 4... Nc6 {[%clk 0:02:51.8]} 5. Nbd2 {[%clk 0:02:58]}
5... Qb6 {[%clk 0:02:49.3]} 6. dxc5 {[%clk 0:02:57.7]} 6... Qxc5 {[%clk
0:02:46.7]} 7. a3 {[%clk 0:02:53.1]} 7... a5 {[%clk 0:02:43]} 8. a4 {[%clk
0:02:49.7]} 8... Bf5 {[%clk 0:02:40.7]} 9. c3 {[%clk 0:02:46.8]} 9... h6 {[%clk
0:02:37.4]} 10. Bb5 {[%clk 0:02:46.6]} 10... e6 {[%clk 0:02:36.9]} 11. Nd4
{[%clk 0:02:38.1]} 11... Bg6 {[%clk 0:02:18.9]} 12. b4 {[%clk 0:02:20.6]} 12...
Qb6 {[%clk 0:02:05.8]} 13. bxa5 {[%clk 0:02:18.1]} 13... Qxa5 {[%clk 0:02:01.1]}
14. Nxc6 {[%clk 0:02:14.6]} 14... bxc6 {[%clk 0:02:00.6]} 15. Bxc6+ {[%clk
0:02:14.7]} 15... Kd8 {[%clk 0:02:01.3]} 16. Bxa8 {[%clk 0:02:13.6]} 16... Qxa8
{[%clk 0:02:01.8]} 17. O-O {[%clk 0:02:12.5]} 17... Bc5 {[%clk 0:02:02]} 18. a5
{[%clk 0:02:09.2]} 18... Ke7 {[%clk 0:02:01.4]} 19. a6 {[%clk 0:02:07.2]} 19...
Bd3 {[%clk 0:01:56.8]} 20. Nb3 {[%clk 0:02:01.1]} 20... Bxf1 {[%clk 0:01:52.9]}
21. Nxc5 {[%clk 0:01:56.6]} 21... Bc4 {[%clk 0:01:52.7]} 22. Qb1 {[%clk
0:01:53]} 22... Rc8 {[%clk 0:00:20.2]} 23. Qb7+ {[%clk 0:01:50.7]} 23... Kf8
{[%clk 0:00:20.9]} 24. h3 {[%clk 0:01:48.3]} 24... Bxa6 {[%clk 0:00:14]} 25.
Qxa8 {[%clk 0:01:40]} 25... Rxa8 {[%clk 0:00:14]} 26. Rxa6 {[%clk 0:01:39.7]}
26... Rc8 {[%clk 0:00:14.5]} 27. Rb6 {[%clk 0:01:36.2]} 27... Ne8 {[%clk
0:00:12.5]} 28. Rb8 {[%clk 0:01:32.9]} 28... Rc6 {[%clk 0:00:09]} 29. e4 {[%clk
0:01:15.6]} 29... Ke7 {[%clk 0:00:09.3]} 30. Be3 {[%clk 0:01:13.7]} 30... dxe4
{[%clk 0:00:09.3]} 31. Rb7+ {[%clk 0:01:11.1]} 31... Kf6 {[%clk 0:00:08.3]} 32.
Nxe4+ {[%clk 0:01:10.8]} 32... Kf5 {[%clk 0:00:08.9]} 33. f3 {[%clk 0:01:08.7]}
33... Kg6 {[%clk 0:00:07.9]} 34. Rb6 {[%clk 0:01:03.9]} 34... Rc7 {[%clk
0:00:07.3]} 35. Kf2 {[%clk 0:01:00.8]} 35... Ra7 {[%clk 0:00:05.7]} 36. Rxe6+
{[%clk 0:00:59.9]} 36... fxe6 {[%clk 0:00:05.6]} 37. Bxa7 {[%clk 0:01:00.7]}
37... Kf5 {[%clk 0:00:05.5]} 38. Bd4 {[%clk 0:01:00]} 38... Nc7 {[%clk
0:00:06.1]} 39. Bxg7 {[%clk 0:00:59.7]} 39... Na6 {[%clk 0:00:07]} 40. Bxh6
{[%clk 0:00:59.6]} 1-0

[Event "Late-Titled-Tuesday-Blitz-April-30-2024"]
[Site "Chess.com"]
[Date "2024.04.30"]
[Round "1"]
[White "Jarming"]
[Black "Jahonas"]
[Result "1-0"]
[WhiteElo "2682"]
[BlackElo "2388"]
[TimeControl "180+1"]
[EndTime "14:06:28 PDT"]
[Termination "Jarming won by resignation"]

1. d4 {[%clk 0:02:46.7]} 1... Nf6 {[%clk 0:02:59.3]} 2. c4 {[%clk 0:02:46.4]}
2... g6 {[%clk 0:02:59.3]} 3. g3 {[%clk 0:02:37.5]} 3... d5 {[%clk 0:02:59.2]}
4. Bg2 {[%clk 0:02:37.1]} 4... c6 {[%clk 0:02:59.1]} 5. Nf3 {[%clk 0:02:34.8]}
5... Bg7 {[%clk 0:02:58.9]} 6. Qb3 {[%clk 0:02:35.5]} 6... O-O {[%clk
0:02:56.5]} 7. Nc3 {[%clk 0:02:35.9]} 7... dxc4 {[%clk 0:02:53.5]} 8. Qxc4
{[%clk 0:02:35.8]} 8... Nbd7 {[%clk 0:02:44.2]} 9. e3 {[%clk 0:02:28.3]} 9... a6
{[%clk 0:02:37.1]} 10. O-O {[%clk 0:02:26.9]} 10... Qc7 {[%clk 0:02:32.1]} 11.
e4 {[%clk 0:02:20.5]} 11... e5 {[%clk 0:02:21.3]} 12. dxe5 {[%clk 0:02:02.6]}
12... Nxe5 {[%clk 0:02:20.1]} 13. Nxe5 {[%clk 0:02:03.5]} 13... Qxe5 {[%clk
0:02:19.3]} 14. Bf4 {[%clk 0:02:04.4]} 14... Qe6 {[%clk 0:02:15.7]} 15. Qb4
{[%clk 0:01:58.9]} 15... Re8 {[%clk 0:02:13.2]} 16. Rad1 {[%clk 0:01:55.1]}
16... Nd7 {[%clk 0:01:58.8]} 17. Bd6 {[%clk 0:01:29]} 17... a5 {[%clk
0:01:48.3]} 18. Qa4 {[%clk 0:01:23.6]} 18... Nb6 {[%clk 0:01:43.1]} 19. Qc2
{[%clk 0:01:20.7]} 19... Nc4 {[%clk 0:01:33.1]} 20. Bf4 {[%clk 0:01:19.5]} 20...
b5 {[%clk 0:01:24.8]} 21. b3 {[%clk 0:01:11.9]} 21... Ne5 {[%clk 0:01:15.1]} 22.
h3 {[%clk 0:01:05.8]} 22... Bb7 {[%clk 0:01:10]} 23. Be3 {[%clk 0:01:04.4]}
23... a4 {[%clk 0:01:04.8]} 24. bxa4 {[%clk 0:00:57.6]} 24... Nc4 {[%clk
0:01:04.3]} 25. Bd4 {[%clk 0:00:56.3]} 25... Bxd4 {[%clk 0:00:50.2]} 26. Rxd4
{[%clk 0:00:57.2]} 26... Qe5 {[%clk 0:00:49.1]} 27. Rfd1 {[%clk 0:00:56.3]}
27... Ba6 {[%clk 0:00:36]} 28. axb5 {[%clk 0:00:54]} 28... cxb5 {[%clk
0:00:36.3]} 29. Nd5 {[%clk 0:00:51.5]} 29... Rac8 {[%clk 0:00:34.5]} 30. f4
{[%clk 0:00:50.1]} 30... Qe6 {[%clk 0:00:29.8]} 31. Qf2 {[%clk 0:00:50.1]} 31...
Nb6 {[%clk 0:00:27.5]} 32. f5 {[%clk 0:00:49.3]} 32... gxf5 {[%clk 0:00:26.1]}
33. exf5 {[%clk 0:00:50.2]} 33... Qh6 {[%clk 0:00:24.3]} 34. Rh4 {[%clk
0:00:44.8]} 34... Qg5 {[%clk 0:00:17.4]} 35. Rg4 {[%clk 0:00:39.7]} 1-0

[Event "Late-Titled-Tuesday-Blitz-April-30-2024"]
[Site "Chess.com"]
[Date "2024.04.30"]
[Round "1"]
[White "Attacker_2006"]
[Black "DominguezOnYoutube"]
[Result "0-1"]
[WhiteElo "2499"]
[BlackElo "2938"]
[TimeControl "180+1"]
[EndTime "14:06:32 PDT"]
[Termination "DominguezOnYoutube won by resignation"]

1. e4 {[%clk 0:02:59.2]} 1... e5 {[%clk 0:02:58.9]} 2. Nf3 {[%clk 0:02:59]} 2...
Nc6 {[%clk 0:02:59.3]} 3. Bc4 {[%clk 0:02:57]} 3... Bc5 {[%clk 0:02:59]} 4. c3
{[%clk 0:02:55.3]} 4... Nf6 {[%clk 0:02:58.9]} 5. d4 {[%clk 0:02:53.7]} 5...
exd4 {[%clk 0:02:59]} 6. cxd4 {[%clk 0:02:54.6]} 6... Bb4+ {[%clk 0:02:58.8]} 7.
Bd2 {[%clk 0:02:52.4]} 7... Nxe4 {[%clk 0:02:58.7]} 8. Bxb4 {[%clk 0:02:50]}
8... Nxb4 {[%clk 0:02:59.6]} 9. Bxf7+ {[%clk 0:02:50.2]} 9... Kxf7 {[%clk
0:03:00.4]} 10. Qb3+ {[%clk 0:02:50.7]} 10... Kf8 {[%clk 0:03:01]} 11. Qxb4+
{[%clk 0:02:50.5]} 11... Qe7 {[%clk 0:03:01.7]} 12. Qxe7+ {[%clk 0:02:49.6]}
12... Kxe7 {[%clk 0:03:02.6]} 13. O-O {[%clk 0:02:38.7]} 13... Kd8 {[%clk
0:03:02.3]} 14. Re1 {[%clk 0:02:32.1]} 14... Nf6 {[%clk 0:03:00.4]} 15. Nc3
{[%clk 0:02:25.5]} 15... d6 {[%clk 0:03:00]} 16. Rac1 {[%clk 0:02:06.1]} 16...
Bd7 {[%clk 0:02:59.1]} 17. Ng5 {[%clk 0:02:02.5]} 17... Re8 {[%clk 0:02:18.1]}
18. Nge4 {[%clk 0:01:50.5]} 18... Nxe4 {[%clk 0:02:08.8]} 19. Nxe4 {[%clk
0:01:51.4]} 19... h6 {[%clk 0:02:07.1]} 20. f3 {[%clk 0:01:45.9]} 20... Be6
{[%clk 0:02:03.7]} 21. a3 {[%clk 0:01:43.2]} 21... Kd7 {[%clk 0:02:03.4]} 22.
Kf2 {[%clk 0:01:41]} 22... a5 {[%clk 0:02:01.7]} 23. Nc3 {[%clk 0:01:38.2]}
23... Bb3 {[%clk 0:01:54.5]} 24. Rxe8 {[%clk 0:01:36.5]} 24... Rxe8 {[%clk
0:01:53.5]} 25. Re1 {[%clk 0:01:37.4]} 25... Rxe1 {[%clk 0:01:50.2]} 26. Kxe1
{[%clk 0:01:38.3]} 26... c5 {[%clk 0:01:40.9]} 27. dxc5 {[%clk 0:01:35.4]} 27...
dxc5 {[%clk 0:01:40.8]} 28. Kd2 {[%clk 0:01:35.2]} 28... Kc6 {[%clk 0:01:37.8]}
29. Ke3 {[%clk 0:01:33.4]} 29... b5 {[%clk 0:01:37.1]} 30. Ke4 {[%clk
0:01:26.2]} 30... b4 {[%clk 0:01:35.5]} 31. Ne2 {[%clk 0:01:15.2]} 31... Bf7
{[%clk 0:01:33.4]} 32. Nf4 {[%clk 0:01:01.3]} 32... Kb5 {[%clk 0:01:21.9]} 33.
axb4 {[%clk 0:00:58.3]} 33... cxb4 {[%clk 0:01:21.4]} 34. Kd3 {[%clk 0:00:53.9]}
34... a4 {[%clk 0:01:16]} 35. Kc2 {[%clk 0:00:51.7]} 35... Kc4 {[%clk
0:01:13.9]} 36. Kb1 {[%clk 0:00:43.1]} 36... Kd4 {[%clk 0:01:12.6]} 37. Ne2+
{[%clk 0:00:23.6]} 37... Ke3 {[%clk 0:01:12.2]} 38. Nc1 {[%clk 0:00:15.5]} 38...
b3 {[%clk 0:01:10.1]} 39. Ka1 {[%clk 0:00:13.7]} 39... g5 {[%clk 0:01:09.2]} 40.
h3 {[%clk 0:00:11.1]} 40... h5 {[%clk 0:01:07.7]} 41. g4 {[%clk 0:00:10.1]}
41... h4 {[%clk 0:01:07.3]} 42. f4 {[%clk 0:00:07.6]} 42... gxf4 {[%clk
0:01:06.5]} 43. Kb1 {[%clk 0:00:07.6]} 43... f3 {[%clk 0:01:06.3]} 0-1

[Event "Late-Titled-Tuesday-Blitz-April-30-2024"]
[Site "Chess.com"]
[Date "2024.04.30"]
[Round "1"]
[White "ATM622"]
[Black "dianamirza"]
[Result "1-0"]
[WhiteElo "2546"]
[BlackElo "1976"]
[TimeControl "180+1"]
[EndTime "14:06:32 PDT"]
[Termination "ATM622 won by checkmate"]

1. d4 {[%clk 0:02:58.9]} 1... Nf6 {[%clk 0:02:52.4]} 2. c4 {[%clk 0:02:58.2]}
2... c5 {[%clk 0:02:51.2]} 3. d5 {[%clk 0:02:56.8]} 3... b5 {[%clk 0:02:51.8]}
4. cxb5 {[%clk 0:02:57.7]} 4... a6 {[%clk 0:02:52.4]} 5. e3 {[%clk 0:02:57]}
5... g6 {[%clk 0:02:51.1]} 6. Nf3 {[%clk 0:02:55]} 6... Bg7 {[%clk 0:02:51]} 7.
Nc3 {[%clk 0:02:54.8]} 7... O-O {[%clk 0:02:51.6]} 8. a4 {[%clk 0:02:47.2]} 8...
axb5 {[%clk 0:02:44.5]} 9. Bxb5 {[%clk 0:02:43.1]} 9... Ba6 {[%clk 0:02:36.7]}
10. O-O {[%clk 0:02:34.3]} 10... Bxb5 {[%clk 0:02:36.6]} 11. Nxb5 {[%clk
0:02:34.2]} 11... d6 {[%clk 0:02:28.6]} 12. Re1 {[%clk 0:02:29.4]} 12... Nbd7
{[%clk 0:02:19.5]} 13. h3 {[%clk 0:02:24.6]} 13... Nb6 {[%clk 0:02:18.4]} 14. e4
{[%clk 0:02:19.5]} 14... Nfd7 {[%clk 0:02:11]} 15. Qc2 {[%clk 0:02:14.9]} 15...
Ne5 {[%clk 0:02:09.4]} 16. Nxe5 {[%clk 0:02:14.2]} 16... Bxe5 {[%clk 0:02:09.1]}
17. Bh6 {[%clk 0:02:12.1]} 17... Bg7 {[%clk 0:02:09]} 18. Bxg7 {[%clk
0:02:11.5]} 18... Kxg7 {[%clk 0:02:09.9]} 19. a5 {[%clk 0:02:07]} 19... Nd7
{[%clk 0:02:07.2]} 20. Qc3+ {[%clk 0:02:02.6]} 20... Kg8 {[%clk 0:02:03.6]} 21.
f4 {[%clk 0:01:57.6]} 21... Qb8 {[%clk 0:01:57.1]} 22. Na3 {[%clk 0:01:42.2]}
22... Qb4 {[%clk 0:01:52.6]} 23. Nc4 {[%clk 0:01:38.6]} 23... Rfb8 {[%clk
0:01:49]} 24. e5 {[%clk 0:01:35.2]} 24... Ra6 {[%clk 0:01:29.3]} 25. g4 {[%clk
0:01:23.5]} 25... Rb5 {[%clk 0:01:21.4]} 26. exd6 {[%clk 0:01:22.2]} 26... exd6
{[%clk 0:01:17.6]} 27. Re8+ {[%clk 0:01:19.3]} 27... Nf8 {[%clk 0:01:17.6]} 28.
Rxf8+ {[%clk 0:01:19.5]} 28... Kxf8 {[%clk 0:01:16.6]} 29. Qh8+ {[%clk
0:01:16.8]} 29... Ke7 {[%clk 0:01:13.1]} 30. b3 {[%clk 0:01:08.1]} 30... Rb8
{[%clk 0:00:57.2]} 31. Qg7 {[%clk 0:01:00.6]} 31... Ra7 {[%clk 0:00:14.7]} 32.
Kf2 {[%clk 0:00:54.8]} 32... Kd8 {[%clk 0:00:12.2]} 33. Qf8+ {[%clk 0:00:47.2]}
33... Kc7 {[%clk 0:00:11.5]} 34. Qe7+ {[%clk 0:00:41.2]} 34... Kc8 {[%clk
0:00:11.6]} 35. Nxd6# {[%clk 0:00:41.5]} 1-0

[Event "Late-Titled-Tuesday-Blitz-April-30-2024"]
[Site "Chess.com"]
[Date "2024.04.30"]
[Round "1"]
[White "miaou33"]
[Black "JRenatoMaranhao"]
[Result "1-0"]
[WhiteElo "2548"]
[BlackElo "2038"]
[TimeControl "180+1"]
[EndTime "14:06:36 PDT"]
[Termination "miaou33 won on time"]

1. e4 {[%clk 0:02:38.3]} 1... c6 {[%clk 0:03:00.9]} 2. d4 {[%clk 0:02:36.4]}
2... d5 {[%clk 0:03:01.4]} 3. exd5 {[%clk 0:02:37.3]} 3... cxd5 {[%clk
0:03:02.3]} 4. Bd3 {[%clk 0:02:34.5]} 4... Nc6 {[%clk 0:03:02.9]} 5. c3 {[%clk
0:02:34.4]} 5... Nf6 {[%clk 0:03:03.3]} 6. h3 {[%clk 0:02:32.4]} 6... g6 {[%clk
0:02:47.8]} 7. Nf3 {[%clk 0:02:31.8]} 7... Bg7 {[%clk 0:02:38.9]} 8. O-O {[%clk
0:02:31.6]} 8... O-O {[%clk 0:02:39]} 9. Bg5 {[%clk 0:02:28.9]} 9... Qb6 {[%clk
0:02:31.6]} 10. Qb3 {[%clk 0:02:26.5]} 10... Na5 {[%clk 0:02:13.2]} 11. Qxb6
{[%clk 0:02:25.4]} 11... axb6 {[%clk 0:02:14.1]} 12. Nbd2 {[%clk 0:02:24.7]}
12... Bf5 {[%clk 0:02:13.1]} 13. Bxf5 {[%clk 0:02:17.8]} 13... gxf5 {[%clk
0:02:14]} 14. Bxf6 {[%clk 0:02:16.2]} 14... Bxf6 {[%clk 0:02:12.2]} 15. Rfe1
{[%clk 0:02:16.6]} 15... b5 {[%clk 0:02:00.9]} 16. Ne5 {[%clk 0:02:15]} 16...
Rfd8 {[%clk 0:01:58.3]} 17. a4 {[%clk 0:02:01.2]} 17... Nc4 {[%clk 0:01:49.6]}
18. Ndxc4 {[%clk 0:01:46.2]} 18... bxc4 {[%clk 0:01:50.5]} 19. f4 {[%clk
0:01:40]} 19... Ra5 {[%clk 0:01:41.6]} 20. b3 {[%clk 0:01:37.2]} 20... cxb3
{[%clk 0:01:23.2]} 21. Reb1 {[%clk 0:01:37.2]} 21... Rda8 {[%clk 0:01:15.2]} 22.
Rxb3 {[%clk 0:01:36.6]} 22... Rxa4 {[%clk 0:00:45]} 23. Rxa4 {[%clk 0:01:37.5]}
23... Rxa4 {[%clk 0:00:45.7]} 24. Rxb7 {[%clk 0:01:37.8]} 24... Ra3 {[%clk
0:00:43.9]} 25. Rc7 {[%clk 0:01:31.9]} 25... Ra1+ {[%clk 0:00:40.8]} 26. Kh2
{[%clk 0:01:31.3]} 26... Rc1 {[%clk 0:00:39]} 27. g4 {[%clk 0:01:23.1]} 27...
fxg4 {[%clk 0:00:37.5]} 28. hxg4 {[%clk 0:01:24]} 28... Kg7 {[%clk 0:00:18.1]}
29. Nf3 {[%clk 0:01:19]} 29... Rc2+ {[%clk 0:00:11.5]} 30. Kg3 {[%clk
0:01:18.6]} 30... e6 {[%clk 0:00:12.1]} 31. g5 {[%clk 0:01:18.7]} 31... Bd8
{[%clk 0:00:12.2]} 32. Rd7 {[%clk 0:01:15.5]} 32... Ba5 {[%clk 0:00:10.5]} 33.
Ne5 {[%clk 0:01:16.4]} 33... Rxc3+ {[%clk 0:00:10.9]} 34. Kg4 {[%clk 0:01:16.9]}
34... Rc7 {[%clk 0:00:10.5]} 35. Rd6 {[%clk 0:01:08.7]} 35... Rb7 {[%clk
0:00:06.2]} 36. f5 {[%clk 0:01:06.9]} 36... Bc7 {[%clk 0:00:04.3]} 37. Rd7
{[%clk 0:01:06.2]} 37... Ra7 {[%clk 0:00:03.5]} 38. Rxf7+ {[%clk 0:01:06.1]}
38... Kg8 {[%clk 0:00:03.3]} 39. fxe6 {[%clk 0:01:07]} 39... Bb6 {[%clk
0:00:01.9]} 40. Rxa7 {[%clk 0:01:06.1]} 40... Bxa7 {[%clk 0:00:02.8]} 41. e7
{[%clk 0:01:06.9]} 1-0

[Event "Late-Titled-Tuesday-Blitz-April-30-2024"]
[Site "Chess.com"]
[Date "2024.04.30"]
[Round "1"]
[White "dropstoneDP"]
[Black "kinga2008"]
[Result "1-0"]
[WhiteElo "3000"]
[BlackElo "2508"]
[TimeControl "180+1"]
[EndTime "14:06:42 PDT"]
[Termination "dropstoneDP won by resignation"]

1. e4 {[%clk 0:02:38.5]} 1... e5 {[%clk 0:02:55.7]} 2. Nf3 {[%clk 0:02:38.7]}
2... Nf6 {[%clk 0:02:56.1]} 3. Nxe5 {[%clk 0:02:38.3]} 3... d6 {[%clk 0:02:56]}
4. Nf3 {[%clk 0:02:38.3]} 4... Nxe4 {[%clk 0:02:56.7]} 5. Nc3 {[%clk 0:02:37.3]}
5... Nxc3 {[%clk 0:02:56.3]} 6. dxc3 {[%clk 0:02:38.2]} 6... Bf5 {[%clk
0:02:52.9]} 7. Nd4 {[%clk 0:02:37.3]} 7... Bg6 {[%clk 0:02:52.5]} 8. h4 {[%clk
0:02:31.2]} 8... Be7 {[%clk 0:02:48.4]} 9. h5 {[%clk 0:02:29.7]} 9... Be4 {[%clk
0:02:48.6]} 10. Qe2 {[%clk 0:02:28.8]} 10... Bc6 {[%clk 0:02:39.9]} 11. h6
{[%clk 0:02:25.4]} 11... g6 {[%clk 0:02:24.4]} 12. Bg5 {[%clk 0:02:24.6]} 12...
Nd7 {[%clk 0:02:21.2]} 13. O-O-O {[%clk 0:02:18.5]} 13... Ne5 {[%clk 0:02:21.2]}
14. Bxe7 {[%clk 0:02:16.7]} 14... Qxe7 {[%clk 0:02:20.9]} 15. f4 {[%clk
0:02:17.2]} 15... Nd7 {[%clk 0:02:17.6]} 16. Qf2 {[%clk 0:02:15.4]} 16... O-O
{[%clk 0:02:14.2]} 17. Bd3 {[%clk 0:02:12.5]} 17... Rfe8 {[%clk 0:02:07.7]} 18.
Rhe1 {[%clk 0:02:09]} 18... Qf6 {[%clk 0:02:07.9]} 19. g4 {[%clk 0:02:06.3]}
19... Nc5 {[%clk 0:02:06.5]} 20. g5 {[%clk 0:02:04.1]} 20... Nxd3+ {[%clk
0:02:05]} 21. cxd3 {[%clk 0:02:05]} 21... Qd8 {[%clk 0:01:59.1]} 22. Rxe8+
{[%clk 0:02:04.3]} 22... Bxe8 {[%clk 0:01:56.3]} 23. Re1 {[%clk 0:02:03]} 23...
c5 {[%clk 0:01:56.5]} 24. Nc2 {[%clk 0:02:01.2]} 24... Bb5 {[%clk 0:01:47.4]}
25. Ne3 {[%clk 0:01:50.5]} 25... Bxd3 {[%clk 0:01:44.2]} 26. Nd5 {[%clk
0:01:47]} 26... Bb5 {[%clk 0:01:31.2]} 27. Nf6+ {[%clk 0:01:22.2]} 27... Kh8
{[%clk 0:01:28.7]} 28. Qe3 {[%clk 0:01:22.6]} 28... Qa5 {[%clk 0:01:22.6]} 29.
a3 {[%clk 0:01:06.5]} 29... Qa4 {[%clk 0:01:09.9]} 30. Qe4 {[%clk 0:01:06.2]}
30... Qb3 {[%clk 0:00:27.7]} 31. Qxb7 {[%clk 0:00:50.3]} 31... Rf8 {[%clk
0:00:27.6]} 32. Qe7 {[%clk 0:00:48.7]} 32... Rb8 {[%clk 0:00:20.4]} 33. Ne8
{[%clk 0:00:44.8]} 33... Kg8 {[%clk 0:00:03.4]} 34. Qf6 {[%clk 0:00:44.3]} 1-0

[Event "Late-Titled-Tuesday-Blitz-April-30-2024"]
[Site "Chess.com"]
[Date "2024.04.30"]
[Round "1"]
[White "Atanejhad"]
[Black "Franmu14"]
[Result "1-0"]
[WhiteElo "2469"]
[BlackElo "2758"]
[TimeControl "180+1"]
[EndTime "14:06:44 PDT"]
[Termination "Atanejhad won by checkmate"]

1. d4 {[%clk 0:02:53.3]} 1... d5 {[%clk 0:02:59.7]} 2. c4 {[%clk 0:02:49.6]}
2... e6 {[%clk 0:03:00.2]} 3. Nc3 {[%clk 0:02:49]} 3... Nf6 {[%clk 0:03:00.9]}
4. Bg5 {[%clk 0:02:47.2]} 4... Nbd7 {[%clk 0:03:01.4]} 5. e3 {[%clk 0:02:47.5]}
5... Bb4 {[%clk 0:03:00.7]} 6. Nf3 {[%clk 0:02:41.7]} 6... c5 {[%clk 0:03:00.4]}
7. Qb3 {[%clk 0:02:30.4]} 7... O-O {[%clk 0:02:57.5]} 8. Be2 {[%clk 0:02:28.3]}
8... h6 {[%clk 0:02:54.2]} 9. Bh4 {[%clk 0:02:27.2]} 9... Qa5 {[%clk 0:02:52]}
10. O-O {[%clk 0:02:24.9]} 10... Bxc3 {[%clk 0:02:50.9]} 11. bxc3 {[%clk
0:02:23.6]} 11... b6 {[%clk 0:02:43.3]} 12. Rfe1 {[%clk 0:02:22.1]} 12... Ba6
{[%clk 0:02:42]} 13. cxd5 {[%clk 0:02:14.6]} 13... exd5 {[%clk 0:02:40.8]} 14.
Bxa6 {[%clk 0:01:51.6]} 14... Qxa6 {[%clk 0:02:41.7]} 15. Bxf6 {[%clk 0:01:44]}
15... Nxf6 {[%clk 0:02:40.6]} 16. Ne5 {[%clk 0:01:43.8]} 16... Rfe8 {[%clk
0:02:38.1]} 17. a4 {[%clk 0:01:37.5]} 17... Ne4 {[%clk 0:01:37.6]} 18. a5 {[%clk
0:01:26.3]} 18... c4 {[%clk 0:01:35.2]} 19. Qb4 {[%clk 0:01:21.1]} 19... b5
{[%clk 0:01:32.4]} 20. f3 {[%clk 0:01:17.7]} 20... Nd2 {[%clk 0:01:30.6]} 21.
Nd7 {[%clk 0:01:10.7]} 21... Nb3 {[%clk 0:01:26.9]} 22. Nc5 {[%clk 0:01:09.9]}
22... Nxc5 {[%clk 0:01:16.4]} 23. Qxc5 {[%clk 0:01:10.8]} 23... Qb7 {[%clk
0:01:10.4]} 24. a6 {[%clk 0:01:08.3]} 24... Qd7 {[%clk 0:01:10.5]} 25. e4 {[%clk
0:01:05]} 25... dxe4 {[%clk 0:01:07.9]} 26. fxe4 {[%clk 0:01:05.9]} 26... Rac8
{[%clk 0:01:07]} 27. Qb4 {[%clk 0:01:02.7]} 27... Qc6 {[%clk 0:01:06.2]} 28. e5
{[%clk 0:01:02.2]} 28... Rcd8 {[%clk 0:01:03.5]} 29. Re3 {[%clk 0:00:52.6]}
29... Re6 {[%clk 0:00:57.4]} 30. Rg3 {[%clk 0:00:48.1]} 30... f6 {[%clk
0:00:53.8]} 31. exf6 {[%clk 0:00:44]} 31... Rd7 {[%clk 0:00:43.2]} 32. Rxg7+
{[%clk 0:00:38.7]} 32... Rxg7 {[%clk 0:00:43.4]} 33. fxg7 {[%clk 0:00:32.2]}
33... Kxg7 {[%clk 0:00:44.3]} 34. Rf1 {[%clk 0:00:30.9]} 34... Re2 {[%clk
0:00:42.7]} 35. Qf8+ {[%clk 0:00:27.8]} 35... Kg6 {[%clk 0:00:40.6]} 36. Qg8+
{[%clk 0:00:26.2]} 36... Kh5 {[%clk 0:00:38.1]} 37. Rf5+ {[%clk 0:00:19.9]}
37... Kh4 {[%clk 0:00:38.1]} 38. Rf4+ {[%clk 0:00:19.3]} 38... Kh5 {[%clk
0:00:38.1]} 39. Qg4# {[%clk 0:00:20]} 1-0

[Event "Late-Titled-Tuesday-Blitz-April-30-2024"]
[Site "Chess.com"]
[Date "2024.04.30"]
[Round "1"]
[White "Sergey_70"]
[Black "tptagain"]
[Result "0-1"]
[WhiteElo "2503"]
[BlackElo "2967"]
[TimeControl "180+1"]
[EndTime "14:06:46 PDT"]
[Termination "tptagain won by resignation"]

1. e4 {[%clk 0:03:00.9]} 1... c5 {[%clk 0:02:59]} 2. Nf3 {[%clk 0:03:00]} 2...
Nc6 {[%clk 0:02:59.4]} 3. Bb5 {[%clk 0:02:59.5]} 3... e6 {[%clk 0:02:59.6]} 4.
Bxc6 {[%clk 0:02:59]} 4... bxc6 {[%clk 0:02:59.8]} 5. b3 {[%clk 0:02:58.6]} 5...
f6 {[%clk 0:02:57.5]} 6. Bb2 {[%clk 0:02:53]} 6... Nh6 {[%clk 0:02:56.8]} 7. d3
{[%clk 0:02:48.3]} 7... e5 {[%clk 0:02:54.1]} 8. h3 {[%clk 0:02:40.3]} 8... Be7
{[%clk 0:02:47]} 9. O-O {[%clk 0:02:31.5]} 9... O-O {[%clk 0:02:45.5]} 10. Nbd2
{[%clk 0:02:21.1]} 10... d6 {[%clk 0:02:44.4]} 11. Nh2 {[%clk 0:02:20.3]} 11...
f5 {[%clk 0:02:34.1]} 12. f4 {[%clk 0:02:09.6]} 12... exf4 {[%clk 0:02:22.9]}
13. Rxf4 {[%clk 0:02:10.5]} 13... Bg5 {[%clk 0:02:21.3]} 14. Rf1 {[%clk
0:02:03.7]} 14... Be3+ {[%clk 0:02:06.9]} 15. Kh1 {[%clk 0:02:02.6]} 15... Be6
{[%clk 0:01:56.9]} 16. Qe2 {[%clk 0:01:56.5]} 16... f4 {[%clk 0:01:47.2]} 17.
Nc4 {[%clk 0:01:47.3]} 17... Bxc4 {[%clk 0:01:31.1]} 18. bxc4 {[%clk 0:01:48.2]}
18... d5 {[%clk 0:01:31.6]} 19. cxd5 {[%clk 0:01:43.3]} 19... cxd5 {[%clk
0:01:32.5]} 20. Ng4 {[%clk 0:01:33.5]} 20... Nxg4 {[%clk 0:01:24.1]} 21. Qxg4
{[%clk 0:01:34.4]} 21... d4 {[%clk 0:01:24.2]} 22. g3 {[%clk 0:01:17.5]} 22...
Rb8 {[%clk 0:01:04.6]} 23. Bc1 {[%clk 0:01:14.8]} 23... Rb6 {[%clk 0:00:47.7]}
24. gxf4 {[%clk 0:00:59.7]} 24... Rg6 {[%clk 0:00:47.8]} 25. Qh5 {[%clk
0:00:51.9]} 25... Rg5 {[%clk 0:00:39]} 26. Qe2 {[%clk 0:00:38.5]} 26... Rg3
{[%clk 0:00:39.1]} 27. Bxe3 {[%clk 0:00:25.6]} 27... Rxh3+ {[%clk 0:00:36.8]}
28. Kg2 {[%clk 0:00:25.6]} 28... Qh4 {[%clk 0:00:24.7]} 29. Rf3 {[%clk
0:00:12.6]} 29... Rh2+ {[%clk 0:00:21.6]} 30. Kg1 {[%clk 0:00:12.5]} 30... Rxe2
{[%clk 0:00:21.3]} 0-1